Cogmind - Beta 17.1 @@@ ROGUE MODE // 2026.08.25 @ 23:33:48 Player: Fedop Result: Destroyed by P-80 Master with Gamma Rifle Performance ------------- Evolutions (7) 3500 Regions Visited (17) 3400 Robots Destroyed (154) 770 Value Destroyed (4228) 4228 Prototype IDs (42) 840 Alien Tech Used (0) 0 Bonus (1527) 1527 TOTAL SCORE: 14265 Bonus ------- Follower Combat Kills 227 Aligned with FarCom 300 Met Warlord at Base 500 MAIN.C Attacked Warlord 500 Cogmind --------- Core Integrity 0/1300 Matter 285/300 Energy 94/200 System Corruption 25% Temperature Cool (0) Movement Core (450) Ox8 Location -3/Research Parts ------- > --- POWER (2) -------- Micro Antimatter Reactor Micro Antimatter Reactor > --- PROPULSION (4) --- Compact Wheel Centrium Wheel Centrium Wheel Improved Antigrav System > --- UTILITY (13) ----- Enhanced Optical Array Advanced Melee Analysis Suite Advanced Melee Analysis Suite Weapon Mount Advanced Actuator Array Hacking Suite > --- WEAPON (2) ------- (None) > --- INVENTORY (5) ---- Compact Wheel Improved Cloaking Device Hypervelocity Railgun Enhanced Force Lance Peak State ------------ > --- POWER ------------ Micro Antimatter Reactor Micro Antimatter Reactor > --- PROPULSION ------- Improved Antigrav System Improved Linear Gravjet Improved Linear Gravjet Combat Antigrav System > --- UTILITY ---------- Medium Storage Unit Enhanced Optical Array Advanced Signal Interpreter Advanced Melee Analysis Suite Advanced Melee Analysis Suite Advanced Target Analyzer Layered Light Armor Plating Advanced Focal Shield Experimental Shield Generator Hacking Suite Improved Hacking Suite Improved System Shield Improved Corruption Screen > --- WEAPON ----------- Chainsword Vortex Lance > --- INVENTORY -------- Micro Fission Core Micro Antimatter Reactor Advanced Weight Redist. System Improved Terrain Scanner Improved Transmission Jammer Advanced Recalibrator Hypervelocity Railgun Advanced Remote Datajack Vibroblade Enhanced Force Lance [Rating: 131] Favorites ----------- Power Light Nuclear Core Engine Ion Engine Power Core Light Nuclear Core Reactor Micro Antimatter Reactor Propulsion Wheel Treads Light Treads Leg Flexi-carbon Leg Wheel Wheel Hover Unit Antigrav System Flight Unit Improved Flight Unit Utility Hacking Suite Device Structural Scanner Storage Medium Storage Unit Processor Enhanced Optical Array Hackware Hacking Suite Protection Utility Shielding Weapon Axe Energy Gun Spread Laser Energy Cannon Ion Cannon Ballistic Gun Assault Rifle Ballistic Cannon Gauss Cannon Launcher Rocket Launcher Special Weapon Improved Plasma Cutter Impact Weapon Maul Slashing Weapon Axe Piercing Weapon Vortex Lance Build | -11 -10 -10 -9 -9 -9 -8 -8 -7 -6 -6 -6 -5 -5 -5 -4 -4 -3 ------- Run | Yrd Mat Min Mat Min Exi Min Mat Fac Fac Low Low Fac Upp War Pro Fac Res Slots Evolved 14 | . . . 2 . . . 2 2 2 . . 2 . . . 2 2 Power 1 | . . . . . . . . . . . . . . . . . 1 Propulsion 2 | . . . . . . . 1 . . . . . . . . . 1 Utility 11 | . . . 2 . . . 1 2 2 . . 2 . . . 2 . Weapon . | . . . . . . . . . . . . . . . . . . Parts Attached 228 | 8 6 2 10 3 1 . 23 31 16 3 2 17 4 3 11 30 58 Power 29 | 1 . . . 1 . . 3 5 1 1 . 2 . 1 4 3 7 Engine 8 | 1 . . . 1 . . 1 2 1 . . 1 . . . . 1 Core 14 | . . . . . . . 2 3 . 1 . 1 . 1 3 2 1 Reactor 7 | . . . . . . . . . . . . . . . 1 1 5 Propulsion 61 | 2 2 . . 1 . . 7 7 1 1 1 3 3 . 3 13 17 Treads 2 | 2 . . . . . . . . . . . . . . . . . Leg 1 | . . . . . . . . . . . . . . . . . 1 Wheel 19 | . 2 . . 1 . . 7 2 . . . . . . . . 7 Hover 19 | . . . . . . . . . . . . . 2 . . 8 9 Flight 20 | . . . . . . . . 5 1 1 1 3 1 . 3 5 . Utility 108 | 3 2 1 4 1 1 . 10 17 10 1 1 10 1 1 2 13 30 Device 45 | 2 1 . 2 . . . 5 2 6 . . 4 1 1 1 7 13 Storage 7 | 1 1 . . . 1 . . . . 1 . . . . . 2 1 Processor 24 | . . 1 . . . . 2 6 3 . . . . . . 2 10 Hackware 12 | . . . . . . . 1 3 . . . 5 . . . 1 2 Protection 20 | . . . 2 1 . . 2 6 1 . 1 1 . . 1 1 4 Artifact . | . . . . . . . . . . . . . . . . . . Weapon 30 | 2 2 1 6 . . . 3 2 4 . . 2 . 1 2 1 4 Energy Gun 5 | . . . 3 . . . . . 1 . . . . . 1 . . Energy Cannon 1 | . . . . . . . 1 . . . . . . . . . . Ballistic Gun 4 | 2 . . 1 . . . . . . . . . . . . . 1 Ballistic Cannon 1 | . . . . . . . . . 1 . . . . . . . . Launcher 1 | . . 1 . . . . . . . . . . . . . . . Special Weapon 1 | . . . . . . . . . . . . 1 . . . . . Impact Weapon 4 | . . . 2 . . . . 1 . . . 1 . . . . . Slashing Weapon 8 | . 2 . . . . . 2 1 1 . . . . . . 1 1 Piercing Weapon 5 | . . . . . . . . . 1 . . . . 1 1 . 2 Special Melee Weapon . | . . . . . . . . . . . . . . . . . . Unidentified Prototypes 14 | . . . . . . . . 3 1 . . . . 1 . 2 7 Corrupted Parts 2 | . . . . . . . . 1 . . . . . . . 1 . System Corruption 9 | . . . . . . . . 3 . . . . . . . 6 . Parts Lost 108 | . . . 5 2 . . 11 19 . . 1 6 3 1 12 17 31 Power 16 | . . . 1 . . . 2 3 . . . 1 . . 3 . 6 Propulsion 31 | . . . 1 . . . 4 2 . . 1 1 3 1 3 6 9 Utility 53 | . . . 2 2 . . 4 10 . . . 4 . . 5 11 15 Weapon 7 | . . . 1 . . . . 4 . . . . . . 1 . 1 Highest Loss Streak 15 | . . . 2 2 . . 3 8 . . 1 6 2 1 7 5 15 To Critical Strikes 2 | . . . . . . . 1 . . . . . . . . 1 . Average Backups 16 | 4 15 23 23 19 18 23 30 29 4 5 8 8 9 10 9 5 8 Power 1 | . 1 2 2 1 1 1 2 1 . . 1 . 1 2 1 . 1 Propulsion 4 | 3 6 9 9 8 8 8 7 9 1 . . 1 . 1 . . . Utility 7 | . 4 9 8 6 5 8 15 15 1 3 4 4 3 4 4 1 3 Weapon 2 | . 2 3 3 4 4 5 4 2 1 2 2 1 1 1 2 1 2 Tool/Special . | . . . . . . . . . . . . . . . . . . Unused Backups 52 | . 2 1 . . . . 3 19 2 . . 4 . 1 . 9 11 Power 6 | . . . . . . . 1 3 . . . . . . . 1 1 Propulsion 13 | . . . . . . . . 8 . . . 1 . . . 1 3 Utility 26 | . 1 . . . . . 1 8 1 . . 3 . 1 . 6 5 Weapon 5 | . 1 1 . . . . 1 . 1 . . . . . . 1 . Tool/Special 2 | . . . . . . . . . . . . . . . . . 2 Average Slot Usage (%) 87 | . 100 100 92 87 98 88 85 82 87 93 84 86 90 95 87 81 87 Engine 3 | . 14 14 6 10 11 11 6 1 . . . . 2 3 2 . . Core 2 | . . . . . . . 2 5 5 6 . 3 2 1 1 3 1 Wheel 9 | . 17 28 19 17 22 22 24 13 . . . . . . . . 1 Hover 3 | . . . . . . . . . . . . . 3 11 5 7 14 Flight 5 | . . . . . . . . 2 20 20 19 12 8 3 5 5 . Device 11 | . 14 10 16 4 11 11 6 10 16 18 8 10 11 11 10 15 7 Storage 6 | . 14 14 11 11 12 22 9 6 . 1 6 5 5 5 4 2 4 Processor 12 | . . 3 11 11 9 . 6 6 21 26 26 14 11 11 11 16 25 Hackware 9 | . . . . . . . . 4 6 6 6 20 35 35 32 17 11 Protection 7 | . . . 5 10 9 . 11 16 11 6 10 8 . . . 2 3 Ballistic Gun 1 | . 23 17 3 . . . . . . . . . . . . . . Impact Weapon 3 | . . . . 10 22 22 8 2 . . . 3 1 3 . 4 . Slashing Weapon 3 | . 4 . . . . . 6 10 1 6 . . . . . . 3 Piercing Weapon 1 | . . . . . . . . . 1 . 4 1 . 2 4 2 3 Peak Build Rating 131 | 9 11 11 14 14 15 17 28 48 56 54 53 85 85 87 84 115 131 Average Rating 52 | 7 9 10 13 12 14 15 23 40 47 52 44 64 72 78 72 91 106 On Entrance 34 | . 8 9 11 11 14 15 17 25 29 54 53 44 85 70 80 45 52 Avg Prop Armor Cover (%) 4 | . . . . . . . . . . . . 7 3 3 3 4 11 Naked Turns . | . . . . . . . . . . . . . . . . . . Heaviest Build 294 | 15 90 92 97 94 290 290 294 232 17 25 25 29 31 31 31 33 49 Greatest Support 49 | 40 40 26 26 26 26 26 42 44 16 16 17 32 35 35 35 32 49 Greatest Overweight (x) 71 | . 3 3 5 3 11 11 21 71 1 1 1 1 . . 2 4 8 Average Overweight (x) 1 | . 2 3 3 3 3 11 7 3 . . . . . . . . . Largest Inventory Capacity 35 | 8 25 25 25 25 35 35 35 35 5 10 10 10 10 10 10 10 10 Average Capacity 18 | 7 18 25 25 25 26 35 34 31 5 6 10 10 10 10 9 7 9 Most Carried 35 | 8 23 25 25 23 21 29 35 35 5 7 10 10 10 10 10 10 10 Average Carried 16 | 4 15 24 23 20 19 24 31 29 4 5 9 9 9 9 9 5 8 Final Capacity 35 | 8 25 25 25 25 35 35 35 5 5 10 10 10 10 10 10 10 5 Final Carried 35 | 8 23 25 24 19 21 29 35 5 5 7 10 9 10 10 9 6 4 Class Distribution -------------------- 15% | Mutant 11% | Hauler-Mutant 10% | Hacker-Scout 9% | Wizard-Mutant 9% | Hauler-Gladiator 8% | Scavenger-Scout 7% | Hauler-Assassin 6% | Hacker-Mutant 6% | Hacker-Ninja 3% | Sprinter 3% | Scavenger-Gladiator Dominant Class ---------------- Mutant | -10/Materials Mutant | -10/Mines Skirmisher | -9/Materials Mutant | -9/Mines Mutant | -9/Exiles Hauler-Mutant | -8/Mines Hauler-Gladiator | -8/Materials Hauler-Assassin | -7/Factory Sprinter | -6/Factory Scavenger-Scout | -6/Lower Caves Scavenger-Scout | -6/Lower Caves Hacker-Scout | -5/Factory Wizard-Mutant | -5/Upper Caves Wizard-Mutant | -5/Warlord Wizard-Mutant | -4/Proximity Caves Hacker-Ninja | -4/Factory Hacker-Scout | -3/Research Resources | -11 -10 -10 -9 -9 -9 -8 -8 -7 -6 -6 -6 -5 -5 -5 -4 -4 -3 ----------- Run | Yrd Mat Min Mat Min Exi Min Mat Fac Fac Low Low Fac Upp War Pro Fac Res Matter Collected 4494 | 343 361 149 346 41 176 10 305 483 286 63 47 128 215 183 170 430 758 Remotely . | . . . . . . . . . . . . . . . . . . Salvage Created 6386 | 259 351 59 348 56 . . 1000 843 748 14 20 18 113 . 194 1023 1340 Parts 326 | 20 32 6 15 . . . 41 40 28 1 1 . 10 . 15 30 87 Haulers Intercepted 9 | . 2 . . . . . 3 . 1 . . . . . . 1 2 Recyclers Shooed 5 | . . 1 . . . . . . 3 . . . . . . . 1 Parts Field Recycled . | . . . . . . . . . . . . . . . . . . Retrieved Matter . | . . . . . . . . . . . . . . . . . . Parts Self-Destructed 18 | . . . . . . . . . . . 1 . 4 . 13 . . Prevented . | . . . . . . . . . . . . . . . . . . Parts Restored . | . . . . . . . . . . . . . . . . . . Kills | -11 -10 -10 -9 -9 -9 -8 -8 -7 -6 -6 -6 -5 -5 -5 -4 -4 -3 ------- Run | Yrd Mat Min Mat Min Exi Min Mat Fac Fac Low Low Fac Upp War Pro Fac Res Combat Hostiles Destroyed 86 | . 8 . 5 5 . . 13 16 . 1 1 1 10 . 7 8 11 Melee 53 | . . . . 4 . . 7 14 . 1 1 . . . 7 8 11 Guns 13 | . 8 . 4 1 . . . . . . . . . . . . . Cannons 1 | . . . . . . . 1 . . . . . . . . . . AOE 13 | . . . 1 . . . . 1 . . . 1 10 . . . . Classes Destroyed 15 | 3 5 . 2 1 . . 1 1 . 1 . . . . . 1 . Worker 12 | 1 1 1 . . . . 1 . . . . . . . . 5 3 Builder 14 | . 2 1 . . . . . 2 1 . . 1 . . . 6 1 Tunneler 14 | 8 . 1 . . . . 2 . . . . . . . . 1 2 Hauler 9 | . 2 . . . . . 3 . 1 . . . . . . 1 2 Recycler 16 | 1 . . 2 . . . 2 1 5 . . . . . . 3 2 Operator 4 | . . . 1 . . . 1 1 . . . . . . . . 1 Watcher 4 | . 1 . 1 . . . 1 . . . . . . . . 1 . Swarmer 30 | . 6 . . . . . 1 3 . . 1 1 10 . 6 2 . Grunt 18 | . 2 . 3 . . . 7 3 . . . . . . 1 . 2 Brawler 1 | . . . . . . . . . . . . . . . . 1 . Sentry 11 | . . . 2 . . . 4 4 . . . . . . . 1 . Hunter 1 | . . . . . . . 1 . . . . . . . . . . Programmer 19 | . . . . . . . . 6 . . . . . . . 4 9 Thief 1 | . . . . . . . . . . 1 . . . . . . . Assembled 5 | . . . . 5 . . . . . . . . . . . . . Best Kill Streak 9 | 3 4 2 3 5 . . 3 2 3 1 1 1 5 . 4 9 4 Combat Bots Only 5 | . 3 . 2 5 . . 3 2 . 1 1 1 5 . 4 2 4 Max Kills in Single Turn 3 | 2 1 1 1 1 . . 1 1 1 1 1 1 3 . 1 2 1 Gunslinging . | . . . . . . . . . . . . . . . . . . Exploded 3 | . . . 1 . . . . 1 . . . 1 3 . . . . Melee 1 | . . . . 1 . . 1 1 . 1 1 . . . 1 1 1 Uniques/NPCs Destroyed . | . . . . . . . . . . . . . . . . . . Combat | -11 -10 -10 -9 -9 -9 -8 -8 -7 -6 -6 -6 -5 -5 -5 -4 -4 -3 -------- Run | Yrd Mat Min Mat Min Exi Min Mat Fac Fac Low Low Fac Upp War Pro Fac Res Hostile Shots Fired 1346 | . 53 . 37 17 . . 89 387 10 . 36 85 37 28 79 145 343 Missed 467 | . 11 . 8 3 . . 14 134 5 . 17 39 23 15 24 61 113 Hits 879 | . 42 . 29 14 . . 75 253 5 . 19 46 14 13 55 84 230 Melee 9 | . . . 2 7 . . . . . . . . . . . . . Projectile 870 | . 42 . 27 7 . . 75 253 5 . 19 46 14 13 55 84 230 AOE 1 | . . . . . . . . 1 . . . . . . . . . Critical Strikes 37 | . . . 1 1 . . 3 8 . . 1 1 . . 2 4 16 Actively Blocked 1 | . . . . . . . 1 . . . . . . . . . . Part Disruptions 7 | . . . . . . . . 1 . . . 1 . . . 1 4 Damage Taken 13644 | . 345 . 471 313 . . 989 2577 111 . 246 779 226 144 891 1682 4870 Core 3538 | . 78 . 138 47 . . 165 440 . . 97 233 37 23 254 704 1322 Absorbed by Shields 483 | . . . . . . . 20 228 . . . . . 135 100 . . Redirected to Shielding 283 | . . . . . . . 31 47 18 . 31 52 . . 69 20 15 Ignored by Resistances 145 | . . . . . . . . 66 . . . . . . . . 79 Regen/Repaired (Parts) 844 | . . . . . . . 216 516 . . . . . 112 . . . Core Remaining (%) 62 | 100 . 68 . . . 53 70 37 . . 88 . . . 45 38 . Volleys Fired 170 | 23 49 13 25 6 . . 3 1 19 . . 1 8 13 . 3 6 Largest 2 | 2 2 1 2 2 . . 2 1 1 . . 1 1 1 . 1 1 Hottest 130 | 40 40 20 130 130 . . 125 33 69 . . 20 33 33 . 63 40 Shots Fired 266 | 46 98 13 39 12 . . 6 1 19 . . 1 8 13 . 4 6 Gun 229 | 46 98 13 36 12 . . 3 . 11 . . . . . . 4 6 Cannon 11 | . . . . . . . 3 . 8 . . . . . . . . Launcher 25 | . . . 3 . . . . 1 . . . . 8 13 . . . Special 1 | . . . . . . . . . . . . 1 . . . . . Kinetic 180 | 46 98 13 9 . . . . . 8 . . . . . . . 6 Thermal 61 | . . . 27 12 . . 6 . 11 . . 1 . . . 4 . Explosive 25 | . . . 3 . . . . 1 . . . . 8 13 . . . Electromagnetic . | . . . . . . . . . . . . . . . . . . Robot Hit Streak 9 | 6 7 4 9 3 . . 3 . 8 . . . 1 . . 3 2 Robot Miss Streak 12 | 8 5 2 12 12 . . 2 . 1 . . . 1 3 . . 2 Penetration Max . | . . . . . . . . . . . . . . . . . . Secondary Targets 3 | . 3 . . . . . . . . . . . . . . . . Max Gunslinging Chain 1 | . 1 . . . . . . . . . . . . . . . . Shots Hit Robots 382 | 28 44 8 30 14 . . 52 68 26 1 2 1 1 . 10 37 60 Core Hits 208 | 11 18 4 40 9 . . 16 21 11 . . . 18 17 7 12 24 Critical Kills 5 | 1 . . . 1 . . . . . . . . . . . 3 . Critical Parts Destroyed 14 | . . . . 1 . . 1 3 . . . . . . . 8 1 Critical Strikes 50 | 1 . . . 2 . . 3 11 5 . . . . . 3 18 7 Burn 1 | . . . . . . . . . . . . . . . . 1 . Destroy 2 | 1 . . . . . . . . . . . . . . . . 1 Smash 18 | . . . . 2 . . 1 4 . . . . . . . 11 . Sever 14 | . . . . . . . 2 7 1 . . . . . . . 4 Impale 6 | . . . . . . . . . 4 . . . . . . . 2 Sunder 9 | . . . . . . . . . . . . . . . 3 6 . Melee Attacks 473 | . 7 . 4 7 . . 67 117 40 1 14 29 . . 17 66 104 Impact 123 | . . . 2 7 . . 31 25 . . . 20 . . . 38 . Slashing 226 | . 7 . 2 . . . 36 92 11 1 . . . . . . 77 Piercing 67 | . . . . . . . . . 29 . 14 9 . . . . 15 Entropic 57 | . . . . . . . . . . . . . . . 17 28 12 Sneak Attacks 57 | . . . . 1 . . 12 6 7 1 . 1 . . 1 15 13 Combat Hostiles 5 | . . . . 1 . . 1 1 . 1 . . . . 1 . . Follow-up Attacks 24 | . . . . . . . 7 9 . . . . . . . . 8 Damage Inflicted 18117 | 378 577 107 479 335 . . 2364 2716 1223 110 104 137 703 708 922 3489 3765 Guns 1790 | 378 577 107 370 65 . . 21 . 189 . . . . . . 51 32 Cannons 46 | . . . . . . . 46 . . . . . . . . . . Explosions 1680 | . . . 109 . . . . 102 . . . . 703 708 . 58 . Melee 14601 | . . . . 270 . . 2297 2614 1034 110 104 137 . . 922 3380 3733 Ramming . | . . . . . . . . . . . . . . . . . . Kinetic 1140 | 378 577 107 46 . . . . . . . . . . . . . 32 Thermal 696 | . . . 324 65 . . 67 . 189 . . . . . . 51 . Explosive 1622 | . . . 109 . . . . 102 . . . . 703 708 . . . Electromagnetic 58 | . . . . . . . . . . . . . . . . 58 . Impact 3634 | . . . . 270 . . 878 405 . . . 137 . . . 1944 . Slashing 6402 | . . . . . . . 1419 2209 300 110 . . . . . . 2364 Piercing 1446 | . . . . . . . . . 734 . 104 . . . . . 608 Entropic 3119 | . . . . . . . . . . . . . . . 922 1436 761 Highest Corruption 25 | . . . . . . . 2 15 . . . 2 . . . 23 25 Average Corruption 5 | . . . . . . . 2 5 . . . 1 . . . 6 9 Corruption Purged 2 | . . . . . . . . . . . . 2 . . . . . Corruption Blocked 15 | . . . . . . . . . . . . . . . . . 15 Effects 96 | . . . . . . . 5 42 . . . 5 . . . 31 13 Message Errors 32 | . . . . . . . 3 11 . . . 1 . . . 12 5 Matter Fused 19 | . . . . . . . 1 8 . . . 2 . . . 6 2 Heat Flow Errors 10 | . . . . . . . . 8 . . . . . . . 2 . Energy Discharges 13 | . . . . . . . . 5 . . . 1 . . . 4 3 Parts Rejected 3 | . . . . . . . . 1 . . . . . . . 1 1 Parts Fused 2 | . . . . . . . . 2 . . . . . . . . . Data Loss (minor) 8 | . . . . . . . . 3 . . . 1 . . . 3 1 Data Loss (major) 7 | . . . . . . . 1 3 . . . . . . . 2 1 Misfires 1 | . . . . . . . . . . . . . . . . 1 . Misdirections 1 | . . . . . . . . 1 . . . . . . . . . Overload Shots . | . . . . . . . . . . . . . . . . . . Overflow Damage 3502 | . . . . 118 . . 373 367 365 60 39 107 . . 57 1601 415 Projectiles 6 | . . . . . . . . . . . . . . . . 6 . Explosions 14 | . . . . . . . . 14 . . . . . . . . . Melee 3482 | . . . . 118 . . 373 353 365 60 39 107 . . 57 1595 415 Knockbacks 8 | . . . . . . . 3 2 . . . . . . . 3 . Impact 8 | . . . . . . . 3 2 . . . . . . . 3 . Kinetic . | . . . . . . . . . . . . . . . . . . Secondary . | . . . . . . . . . . . . . . . . . . Self-Inflicted Damage 120 | . . . 70 . . . . . . . . . 13 2 . 35 . Shots 6 | . . . 3 . . . . . . . . . 1 1 . 1 . Rammed . | . . . . . . . . . . . . . . . . . . Targets Rammed . | . . . . . . . . . . . . . . . . . . Kicked . | . . . . . . . . . . . . . . . . . . Crushed . | . . . . . . . . . . . . . . . . . . Highest Temperature 363 | . . . 245 363 . . 51 236 51 . . . . 3 319 201 123 Average Temperature 45 | . . . 58 189 . . 23 92 22 . . . . 3 170 66 23 Received Heat Transfer 1781 | . 42 . 162 40 . . 254 619 9 . 30 27 . 42 358 30 168 Siege Activations . | . . . . . . . . . . . . . . . . . . Martial Activations . | . . . . . . . . . . . . . . . . . . Shielding Activations . | . . . . . . . . . . . . . . . . . . Robots Disrupted . | . . . . . . . . . . . . . . . . . . Combat Hostiles . | . . . . . . . . . . . . . . . . . . Robots Corrupted 12 | . . . . . . . 6 2 . . . 1 . . . 3 . Combat Hostiles 6 | . . . . . . . 5 1 . . . . . . . . . Parts Fried 31 | . . . . . . . 7 6 . . . 1 . . . 17 . Impact Corruptions 54 | . . . . 4 . . 8 8 . . . 4 . . . 30 . Robots Melted . | . . . . . . . . . . . . . . . . . . Combat Hostiles . | . . . . . . . . . . . . . . . . . . Parts Melted 3 | . . . . . . . . . . . . . . . . . 3 Heat Transferred 1139 | . . . 405 80 . . 99 . 370 . . . . . . 185 . Parts Sabotaged . | . . . . . . . . . . . . . . . . . . Parts Stolen . | . . . . . . . . . . . . . . . . . . Parts Stripped . | . . . . . . . . . . . . . . . . . . Power Chain Reactions . | . . . . . . . . . . . . . . . . . . Alert | -11 -10 -10 -9 -9 -9 -8 -8 -7 -6 -6 -6 -5 -5 -5 -4 -4 -3 ------- Run | Yrd Mat Min Mat Min Exi Min Mat Fac Fac Low Low Fac Upp War Pro Fac Res Maximum Alert Level 1 | . . . . . . . . . . . . 1 . . . 1 . Low Security (%) 99 | 100 100 100 100 100 . 100 100 100 100 . . 97 . . . 95 100 Level 1 . | . . . . . . . . . . . . 2 . . . 4 . Level 2 . | . . . . . . . . . . . . . . . . . . Level 3 . | . . . . . . . . . . . . . . . . . . Level 4 . | . . . . . . . . . . . . . . . . . . Level 5 . | . . . . . . . . . . . . . . . . . . High Security . | . . . . . . . . . . . . . . . . . . Max Security . | . . . . . . . . . . . . . . . . . . Peak Influence 241 | 15 149 5 33 1 . . 120 125 78 . . 204 . . . 241 123 Initial 123 | . . . . . . . . 16 46 . . 42 . . . 56 123 Average 29 | 2 58 . 9 . . . 36 20 16 . . 43 . . . 34 50 Influence Increases 4718 | 50 295 15 211 1 . . 504 789 242 . 125 353 250 87 404 710 682 Destroy 0b10 Robot/C 1760 | . 160 . 100 . . . 260 360 . . 20 20 200 60 200 160 220 Destroy 0b10 Robot/NC 370 | 50 30 15 20 . . . 50 20 35 . . 5 . 5 . 85 55 Destroy Leader 376 | . 36 . 22 . . . 88 130 2 . . . 20 . 20 34 24 Allied During Kill 41 | . . . . . . . . . . . . . . 22 19 . . Successful Hack 226 | . 4 . 28 . . . 22 71 48 . . 10 . . . 21 22 Disable Machine 105 | . 30 . . . . . . 15 . . . . . . . 60 . Destroy Structure 280 | . 5 . 26 1 . . 9 43 22 . . 48 . . . 50 76 Partial Spotted 120 | . . . . . . . . 15 15 . . . . . . 45 45 Lose Combat Pursuer 1440 | . 30 . 15 . . . 75 135 120 . 105 270 30 . 165 255 240 Influence Decreases 4718 | 50 294 16 211 1 . . 466 731 292 46 58 243 277 232 319 564 918 Entered New Map 485 | . . 1 . . . . . 22 50 18 . 25 67 150 5 34 113 Time Decay 3247 | 50 294 15 187 1 . . 376 467 242 28 48 158 170 42 204 390 575 Lost Part 811 | . . . 24 . . . 90 157 . . 10 60 30 . 80 130 230 Lost Ally 128 | . . . . . . . . 38 . . . . 10 40 30 10 . Purge Threat 47 | . . . . . . . . 47 . . . . . . . . . Squads Dispatched 42 | . 2 . 3 . . . 3 11 7 . . 2 . . . 5 9 Investigation 11 | . 1 . 1 . . . 2 3 3 . . . . . . . 1 Extermination 21 | . . . . . . . . 6 3 . . 2 . . . 4 6 Reinforcement 10 | . 1 . 2 . . . 1 2 1 . . . . . . 1 2 Assault . | . . . . . . . . . . . . . . . . . . Garrison . | . . . . . . . . . . . . . . . . . . Intercept . | . . . . . . . . . . . . . . . . . . Searches Triggered . | . . . . . . . . . . . . . . . . . . Construction Impeded 2 | . . . 1 . . . . 1 . . . . . . . . . Haulers Reinforced . | . . . . . . . . . . . . . . . . . . Active Scanning Responses . | . . . . . . . . . . . . . . . . . . Cargo Convoy Interrupts . | . . . . . . . . . . . . . . . . . . Stealth | -11 -10 -10 -9 -9 -9 -8 -8 -7 -6 -6 -6 -5 -5 -5 -4 -4 -3 --------- Run | Yrd Mat Min Mat Min Exi Min Mat Fac Fac Low Low Fac Upp War Pro Fac Res Distress Signals 17 | . 1 . . . . . 6 1 1 . . 2 . 1 . 1 4 Communications Jammed . | . . . . . . . . . . . . . . . . . . Distress Signals . | . . . . . . . . . . . . . . . . . . Times Spotted 278 | . 15 . 14 10 . . 23 36 8 . 9 38 12 24 16 35 38 Peak Tracking Total 13 | . 3 . 5 10 . . 5 5 5 . 5 13 5 11 6 7 6 Tactical Retreats 51 | . 1 . 1 2 . . 3 6 3 . 6 6 2 . 5 8 8 Traps | -11 -10 -10 -9 -9 -9 -8 -8 -7 -6 -6 -6 -5 -5 -5 -4 -4 -3 ------- Run | Yrd Mat Min Mat Min Exi Min Mat Fac Fac Low Low Fac Upp War Pro Fac Res Traps Triggered 11 | . 1 . 1 . . . 2 . 1 . . . . . . 3 3 Indirectly . | . . . . . . . . . . . . . . . . . . Trap Hack Attempts . | . . . . . . . . . . . . . . . . . . Triggered . | . . . . . . . . . . . . . . . . . . Disarmed . | . . . . . . . . . . . . . . . . . . Reprogrammed . | . . . . . . . . . . . . . . . . . . Reused . | . . . . . . . . . . . . . . . . . . Traps Extracted . | . . . . . . . . . . . . . . . . . . Installed . | . . . . . . . . . . . . . . . . . . Triggered . | . . . . . . . . . . . . . . . . . . Machines | -11 -10 -10 -9 -9 -9 -8 -8 -7 -6 -6 -6 -5 -5 -5 -4 -4 -3 ---------- Run | Yrd Mat Min Mat Min Exi Min Mat Fac Fac Low Low Fac Upp War Pro Fac Res Machines Disabled 10 | . 3 . . . . . . 1 . . . . . 2 . 4 . Max in Single Turn 2 | . 1 . . . . . . 1 . . . . . 1 . 2 . Garrison Access 2 | . . . . . . . . . 1 . . . . . . . 1 Machines Repaired . | . . . . . . . . . . . . . . . . . . Machines Dismantled . | . . . . . . . . . . . . . . . . . . Machines Sabotaged . | . . . . . . . . . . . . . . . . . . Overloaded Fab Kills . | . . . . . . . . . . . . . . . . . . Hacking | -11 -10 -10 -9 -9 -9 -8 -8 -7 -6 -6 -6 -5 -5 -5 -4 -4 -3 --------- Run | Yrd Mat Min Mat Min Exi Min Mat Fac Fac Low Low Fac Upp War Pro Fac Res Machines Accessed 57 | . 3 . 3 . 1 . 8 9 12 . . 3 1 6 . 4 7 Terminals 26 | . 3 . 2 . . . 7 4 4 . . 1 1 . . 2 2 Fabricators 4 | . . . . . . . . 1 1 . . 1 . . . . 1 Repair Stations 2 | . . . . . . . 1 1 . . . . . . . . . Recycling Units 8 | . . . . . . . . 1 4 . . . . . . 1 2 Scanalyzers 6 | . . . 1 . . . . 1 1 . . 1 . . . 1 1 Garrison Access 4 | . . . . . . . . 1 2 . . . . . . . 1 Total Hacks 152 | . 6 . 10 . 1 . 21 34 27 . . 10 1 16 . 10 16 Successful 91 | . 3 . 6 . 1 . 8 19 14 . . 8 1 16 . 8 7 Failed 60 | . 3 . 4 . . . 13 15 13 . . 2 . . . 1 9 Catastrophic 9 | . . . . . . . 2 2 3 . . . . . . . 2 Database Lockouts 1 | . . . . . . . . . . . . . . . . 1 . Manual 70 | . 2 . 5 . 1 . 19 11 19 . . 2 . 1 . 3 7 Terminals 71 | . 6 . 7 . . . 19 17 9 . . 3 1 . . 4 5 Fabricators 9 | . . . . . . . . 3 2 . . 2 . . . . 2 Repair Stations 7 | . . . . . . . 2 5 . . . . . . . . . Recycling Units 23 | . . . . . . . . 2 11 . . . . . . 4 6 Scanalyzers 18 | . . . 3 . . . . 4 2 . . 5 . . . 2 2 Garrison Access 7 | . . . . . . . . 3 3 . . . . . . . 1 Terminal Hacks 33 | . 1 . 2 . 1 . 3 6 . . . 1 1 16 . 2 . Record 17 | . . . . . . . 1 . . . . . 1 15 . . . Part Schematic 3 | . . . . . . . . 3 . . . . . . . . . Robot Analysis 3 | . 1 . 1 . . . 1 . . . . . . . . . . Open Door 1 | . . . . . . . . . . . . . . 1 . . . Branch Access Points 1 | . . . . . . . . . . . . . . . . 1 . Terminal Index 1 | . . . . . . . . . . . . 1 . . . . . Alert Level 1 | . . . 1 . . . . . . . . . . . . . . Unreport Threat 1 | . . . . . . . . 1 . . . . . . . . . Registered Components 3 | . . . . . . . 1 1 . . . . . . . 1 . Registered Prototypes 1 | . . . . . . . . 1 . . . . . . . . . Proto ID Catalog 1 | . . . . . 1 . . . . . . . . . . . . Fabricator Hacks 6 | . . . . . . . . 1 2 . . 2 . . . . 1 Network Status 1 | . . . . . . . . . . . . 1 . . . . . Load Schematic 3 | . . . . . . . . . 1 . . 1 . . . . 1 Build 2 | . . . . . . . . 1 1 . . . . . . . . Repair Station Hacks 6 | . . . . . . . 2 4 . . . . . . . . . Scan Component 3 | . . . . . . . 1 2 . . . . . . . . . Repair 3 | . . . . . . . 1 2 . . . . . . . . . Recycling Unit Hacks 4 | . . . . . . . . . 1 . . . . . . 2 1 Report Inventory 3 | . . . . . . . . . 1 . . . . . . 1 1 Retrieve Components 1 | . . . . . . . . . . . . . . . . 1 . Scanalyzer 12 | . . . 2 . . . . 3 1 . . 5 . . . 1 . Insert Component 6 | . . . . . . . . . 1 . . 5 . . . . . Retrieve Study 6 | . . . 2 . . . . 3 . . . . . . . 1 . Garrison Access Hacks 2 | . . . . . . . . . 1 . . . . . . . 1 Seal Access 2 | . . . . . . . . . 1 . . . . . . . 1 Unauthorized Hacks 27 | . 2 . 2 . . . 3 4 9 . . . . . . 3 4 Terminals 13 | . 2 . 2 . . . 3 2 3 . . . . . . 1 . Assimilate 3 | . . . . . . . . . 2 . . . . . . 1 . Botnet 10 | . 2 . 2 . . . 3 2 1 . . . . . . . . Fabricators . | . . . . . . . . . . . . . . . . . . Repair Stations . | . . . . . . . . . . . . . . . . . . Recycling Units 14 | . . . . . . . . 2 6 . . . . . . 2 4 Reject 7 | . . . . . . . . 1 3 . . . . . . 1 2 Mask 7 | . . . . . . . . 1 3 . . . . . . 1 2 Scanalyzers . | . . . . . . . . . . . . . . . . . . Garrison Access . | . . . . . . . . . . . . . . . . . . Data Cores Recovered . | . . . . . . . . . . . . . . . . . . Used . | . . . . . . . . . . . . . . . . . . Hacking Detections 35 | . 1 . 3 . . . 6 8 8 . . 2 . . . 2 5 Full Trace Events 9 | . . . 1 . . . 1 3 3 . . . . . . . 1 Feedback Events 2 | . . . . . . . . 1 1 . . . . . . . . Corruption 2 | . . . . . . . . 1 1 . . . . . . . . Feedback Blocked . | . . . . . . . . . . . . . . . . . . Robot Schematics Acquired . | . . . . . . . . . . . . . . . . . . Robots Built 3 | . . . . . . . . 3 . . . . . . . . . Authchips . | . . . . . . . . . . . . . . . . . . Time 67 | . . . . . . . . 67 . . . . . . . . . Total Robot Build Rating 12 | . . . . . . . . 12 . . . . . . . . . Part Schematics Acquired 3 | . . . . . . . . 3 . . . . . . . . . Parts Built 1 | . . . . . . . . . 1 . . . . . . . . Authchips . | . . . . . . . . . . . . . . . . . . Time 73 | . . . . . . . . . 73 . . . . . . . . Total Part Build Rating 3 | . . . . . . . . . 3 . . . . . . . . Part Studies Acquired 6 | . . . 2 . . . . 3 . . . . . . . 1 . Parts Repaired 3 | . . . . . . . 1 2 . . . . . . . . . Time 61 | . . . . . . . 26 35 . . . . . . . . . Parts Recycled . | . . . . . . . . . . . . . . . . . . Recycled Matter . | . . . . . . . . . . . . . . . . . . Retrieved Matter . | . . . . . . . . . . . . . . . . . . Retrieved Components 3 | . . . . . . . . . . . . . . . . 3 . Parts Scanalyzed . | . . . . . . . . . . . . . . . . . . Part Schematics Acquired . | . . . . . . . . . . . . . . . . . . Parts Damaged . | . . . . . . . . . . . . . . . . . . Bothacking | -11 -10 -10 -9 -9 -9 -8 -8 -7 -6 -6 -6 -5 -5 -5 -4 -4 -3 ------------ Run | Yrd Mat Min Mat Min Exi Min Mat Fac Fac Low Low Fac Upp War Pro Fac Res Used RIF Installer . | . . . . . . . . . . . . . . . . . . Robots Hacked . | . . . . . . . . . . . . . . . . . . Non-combat . | . . . . . . . . . . . . . . . . . . Combat . | . . . . . . . . . . . . . . . . . . Robot Hacks Applied . | . . . . . . . . . . . . . . . . . . Relay Couplers Released . | . . . . . . . . . . . . . . . . . . Fabnet Peak Effective % . | . . . . . . . . . . . . . . . . . . Robots Rewired 5 | . . . . . . . . . . . . . . 5 . . . Allies Hacked . | . . . . . . . . . . . . . . . . . . Hacks Repelled . | . . . . . . . . . . . . . . . . . . Allies | -11 -10 -10 -9 -9 -9 -8 -8 -7 -6 -6 -6 -5 -5 -5 -4 -4 -3 -------- Run | Yrd Mat Min Mat Min Exi Min Mat Fac Fac Low Low Fac Upp War Pro Fac Res Total Allies 11 | . . . . . . . . 3 2 . . . . 5 . 1 . Largest Group 5 | . . . . . . . . 3 1 . . . . 5 3 1 . Highest-Rated Group 267 | . . . . . . . . 60 26 . . . . 267 177 45 . Highest-Rated Ally 64 | . . . . . . . . 20 26 . . . . 64 64 45 . Total Orders 16 | . . . . . . . . . 5 . . . 1 . 8 2 . STAY 6 | . . . . . . . . . 3 . . . . . 2 1 . FOLLOW 5 | . . . . . . . . . 2 . . . . . 2 1 . EXPLORE 5 | . . . . . . . . . . . . . 1 . 4 . . Ally Attacks 41 | . . . . . . . . 17 . . . . . 18 6 . . Total Damage 1444 | . . . . . . . . 496 . . . . . 713 235 . . Kills 9 | . . . . . . . . 2 . . . . . 4 3 . . Allies Corrupted . | . . . . . . . . . . . . . . . . . . Allies Melted 1 | . . . . . . . . . . . . . . . 1 . . Intel | -11 -10 -10 -9 -9 -9 -8 -8 -7 -6 -6 -6 -5 -5 -5 -4 -4 -3 ------- Run | Yrd Mat Min Mat Min Exi Min Mat Fac Fac Low Low Fac Upp War Pro Fac Res Active Infowar (turns) 17296 | 134 796 706 467 47 544 493 1252 2179 1466 511 657 1458 354 945 825 2137 2325 Optics 10882 | . . . . . . . . 232 1466 511 654 1458 354 945 825 2137 2300 Sensors 1385 | . 226 706 453 . . . . . . . . . . . . . . IFF 96 | . . . . . . . . . 96 . . . . . . . . Terrain 6623 | 123 342 . . . . . 173 1581 322 511 524 1131 . . . 1178 738 Structural 5399 | . . . 465 46 544 493 1252 866 768 511 174 . . . . . 280 Seismic 370 | 11 228 . . 30 . . . . . . . . . . . . 101 T.N.C. 521 | . . . . . . . . . . . . . . . . . 521 Machine Analysis 193 | . . . . . . . . 193 . . . . . . . . . Cloaking 230 | . . . . . . . . . . . . . . . . . 230 Jamming 392 | . . . . . . . . . . . . . . . . 392 . ECM 1 | . . . . . . . . . . . . . . . . 1 . Robot Analysis Total 3 | . 1 . 1 . . . 1 . . . . . . . . . . Derelict Logs Recovered 9 | . . 2 . . . . . . . 1 1 . 3 . 2 . . Drone Launches 5 | . . . . . . . . . . . . . 1 . 4 . . Drone Recoveries 2 | . . . . . . . . . . . . . . . 2 . . Exploration | -11 -10 -10 -9 -9 -9 -8 -8 -7 -6 -6 -6 -5 -5 -5 -4 -4 -3 ------------- Run | Yrd Mat Min Mat Min Exi Min Mat Fac Fac Low Low Fac Upp War Pro Fac Res Turns Passed 19995 | 260 796 936 610 178 544 493 2444 3023 1499 511 657 1458 354 945 825 2137 2325 Spaces Moved 17084 | 110 401 669 343 84 378 191 860 1669 2302 732 842 1785 621 988 750 2219 2140 Core 277 | 3 . . . . . . . 1 . . . . . . 134 134 5 Treads 207 | 107 100 . . . . . . . . . . . . . . . . Legs . | . . . . . . . . . . . . . . . . . . Wheels 4143 | . 301 669 343 84 378 191 860 1042 . . . . . . . . 275 Hover 4646 | . . . . . . . . . . . . . 188 988 357 1253 1860 Flight 7811 | . . . . . . . . 626 2302 732 842 1785 433 . 259 832 . Fastest Speed 30 | 50 135 135 135 135 135 255 161 32 30 30 30 32 32 61 32 30 43 Average Speed 73 | 157 141 135 141 135 143 255 192 120 31 37 31 36 41 61 61 51 58 Slowest Speed 3600 | 160 160 135 175 135 255 255 395 3600 103 106 114 112 61 61 195 250 450 Overloaded Moves . | . . . . . . . . . . . . . . . . . . Propulsion Burnouts . | . . . . . . . . . . . . . . . . . . Robots Hopped 17 | . . . . . . . . . 6 . 1 4 2 . . 4 . Potential Cave-ins 4 | . . . . . . . . . . . . . . 3 . . 1 Cave-ins Triggered 3 | . . . . . . . . . . . 1 . . . . 2 . Exploration Rate (%) 52 | 5 53 99 26 23 78 50 52 37 31 88 75 19 76 92 90 20 37 Regions Visited 17 Branch Regions 9 Pre-discovered Areas 3 | . . 1 . . . . . . . . . . 1 . 1 . . Known Exits Taken 4 | . . 1 1 1 . . . . . 1 . . . . . . . Unknown Exits Taken 13 | 1 1 . . . 1 1 1 1 1 . 1 1 1 1 1 1 . Scrap Searched 21 | . . 1 . . . 2 . . . 3 11 . 3 . 1 . . Spaces Dug 176 | . 5 . 3 1 . . 8 31 26 . 11 24 . . . 27 40 Terrain Destroyed 328 | . 5 . 31 1 . . 9 42 26 . 11 24 49 63 . 27 40 Melee 171 | . 5 . 3 1 . . 8 31 21 . 11 24 . . . 27 40 Projectile 6 | . . . . . . . 1 . 5 . . . . . . . . AOE 151 | . . . 28 . . . . 11 . . . . 49 63 . . . Terrain Rammed . | . . . . . . . . . . . . . . . . . . Walls Destroyed . | . . . . . . . . . . . . . . . . . . Machines Disabled . | . . . . . . . . . . . . . . . . . . Actions | -11 -10 -10 -9 -9 -9 -8 -8 -7 -6 -6 -6 -5 -5 -5 -4 -4 -3 --------- Run | Yrd Mat Min Mat Min Exi Min Mat Fac Fac Low Low Fac Upp War Pro Fac Res Total 23460 | 148 520 688 418 120 382 198 1532 2491 2977 968 1212 2527 703 1313 1095 3119 3049 Wait 4947 | . 29 . 19 7 . . 518 576 570 228 345 670 58 283 293 695 656 Move 17033 | 109 400 668 342 83 377 190 859 1668 2289 731 839 1776 616 987 749 2210 2140 Hop 17 | . . . . . . . . . 6 . 1 4 2 . . 4 . Pick Up 239 | 7 20 3 4 . 1 8 48 49 11 3 4 12 4 1 8 30 26 Fast Attach 154 | 8 . . 3 1 1 . 8 17 13 . . 7 2 1 8 28 57 Attach 84 | . 1 . 5 7 . . 7 16 2 1 3 9 5 . 5 12 11 Detach 81 | 1 1 . 4 2 2 . 4 13 5 . 2 5 4 . 3 16 19 Swap 114 | . 7 3 8 8 1 . 21 22 3 2 1 4 3 6 2 13 10 Drop 166 | . 6 1 4 . . . 10 24 19 2 3 10 1 1 10 43 32 Fire 170 | 23 49 13 25 6 . . 3 1 19 . . 1 8 13 . 3 6 Melee 434 | . 7 . 4 6 . . 54 105 40 1 14 29 . . 17 65 92 Ram . | . . . . . . . . . . . . . . . . . . Kick . | . . . . . . . . . . . . . . . . . . Crush . | . . . . . . . . . . . . . . . . . . Escape Stasis . | . . . . . . . . . . . . . . . . . . Rewire 21 | . . . . . . . . . . . . . . 21 . . . Trap . | . . . . . . . . . . . . . . . . . . Miscellaneous . | . . . . . . . . . . . . . . . . . . Route ------- -11/Scrapyard -10/Materials (discovered 2 exits: *Mat / [*Min]) -10/Mines (discovered 3 exits: *Mat x2 / *Sub) -9/Materials -9/Mines -9/Exiles -8/Mines -8/Materials (discovered 2 exits: *Fac / [*Sto]) -7/Factory (discovered 3 exits: *Fac x3) -6/Factory -6/Lower Caves -6/Lower Caves (discovered 2 exits: *Fac / [*Zio]) -5/Factory -5/Upper Caves (discovered 2 exits: [*Upp] / *War) -5/Warlord -4/Proximity Caves -4/Factory (discovered 5 exits: *Res x2 / Upp x2 / Arm) -3/Research (discovered 1 exit: *Res) History --------- Turn | Location | Event 27 | -11/Scrapyard | Discovered new exit (range 16) 261 | -11/Scrapyard | Entered Materials 309 | -10/Materials | Build established: Mutant 462 | -10/Materials | Discovered new exit (range 15) 734 | -10/Materials | Discovered new exit (range 11) 761 | -10/Materials | Derelicts attacked the area 1057 | -10/Materials | Entered Mines 1058 | -10/Mines | Met a Derelict testing a Signal Generator 1060 | -10/Mines | Found Signal Generator 1306 | -10/Mines | Received a Rocket Launcher from a helpful Derelict 1342 | -10/Mines | Learned Materials garrison access intel 1630 | -10/Mines | Discovered new exit (range 8) 1638 | -10/Mines | Discovered new exit (range 14) 1662 | -10/Mines | Learned location of Zion (-6) 1755 | -10/Mines | Discovered new exit (range 10) 1769 | -10/Mines | Identified exit to Materials 1955 | -10/Mines | Identified exit to Subcaves 1993 | -10/Mines | Entered Materials 1993 | -9/Materials | Evolved 2 slots: Utility x2 2406 | -9/Materials | Discovered new exit (range 16) 2515 | -9/Materials | Build established: Skirmisher 2602 | -9/Materials | Identified exit to Mines 2603 | -9/Materials | Entered Mines 2612 | -9/Mines | Assembled infested the area 2774 | -9/Mines | Deemed a non-threat by the Exiles lab entrance 2774 | -9/Mines | Discovered new exit (range 6) 2779 | -9/Mines | Identified exit to Exiles 2781 | -9/Mines | Entered Exiles 2814 | -9/Exiles | Met 8R-AWN 2838 | -9/Exiles | Met EX-HEX 2878 | -9/Exiles | Build established: Mutant 2917 | -9/Exiles | Met EX-DEC 2950 | -9/Exiles | Visited The Gauntlet 3049 | -9/Exiles | Met EX-BIN 3069 | -9/Exiles | Aligned with FarCom system 3071 | -9/Exiles | Given EX-Vault access code 3111 | -9/Exiles | Opened EX-Vault 3123 | -9/Exiles | Found Field Lobotomy Kit 3153 | -9/Exiles | Warned to stay clear of 0b10 Research branches 3295 | -9/Exiles | Discovered new exit (range 14) 3325 | -9/Exiles | Left Exiles lab with Field Lobotomy Kit 3325 | -9/Exiles | Entered Mines 3566 | -8/Mines | Build established: Hauler-Mutant 3767 | -8/Mines | Discovered new exit (range 15) 3818 | -8/Mines | Entered Materials 3818 | -8/Materials | Evolved 2 slots: Propulsion x1, Utility x1 3819 | -8/Materials | Loaded intel: 1 garrison access location 4529 | -8/Materials | Lost 3 parts (1p2n) 4696 | -8/Materials | Discovered new exit (range 15) 4764 | -8/Materials | Build established: Hauler-Gladiator 5882 | -8/Materials | Lost 3 parts (1p1n1u) 6078 | -8/Materials | Discovered new exit (range 11) 6120 | -8/Materials | Repaired Humpback 6262 | -8/Materials | Entered Factory 6262 | -7/Factory | Evolved 2 slots: Utility x2 6431 | -7/Factory | Build established: Hauler-Mutant 6823 | -7/Factory | Build established: Hauler-Gladiator 6823 | -7/Factory | Discovered new exit (range 11) 6839 | -7/Factory | Found Powered Armor 7340 | -7/Factory | Build established: Hauler-Mutant 8160 | -7/Factory | Build established: Hauler-Assassin 8355 | -7/Factory | Discovered new exit (range 6) 8620 | -7/Factory | Discovered new exit (range 16) 8629 | -7/Factory | Repaired Humpback 8647 | -7/Factory | Lost 8 parts (1n4u3w) 8823 | -7/Factory | Repaired Arm. Huge Wheel 8855 | -7/Factory | Fabricated B-48 Gladiator? 9240 | -7/Factory | Core integrity fell below 50% 9250 | -7/Factory | System corruption reached 10% 9255 | -7/Factory | Lost 6 parts (1p4u1w) 9285 | -7/Factory | Entered another Factory area 9285 | -6/Factory | Evolved 2 slots: Utility x2 9304 | -6/Factory | Discovered new exit (range 9) 9418 | -6/Factory | Spotted B-75 Beast 9523 | -6/Factory | Build established: Sprinter 10048 | -6/Factory | Fabricated Hacking Suite? 10423 | -6/Factory | Build established: Scout 10784 | -6/Factory | Entered Lower Caves 10786 | -6/Lower Caves | Build established: Scavenger-Scout 10811 | -6/Lower Caves | Spotted B-75 Beast 10854 | -6/Lower Caves | Encountered a Warlord checkpoint 10961 | -6/Lower Caves | Identified exit to Lower Caves 11177 | -6/Lower Caves | Found DCF Scrap (10 items) 11295 | -6/Lower Caves | Entered another Lower Caves area 11312 | -6/Lower Caves | Discovered new exit (range 8) 11805 | -6/Lower Caves | Attracted the attention of an 0b10 checkpoint 11811 | -6/Lower Caves | Learned Factory trap positions 11826 | -6/Lower Caves | Crushed by falling debris 11874 | -6/Lower Caves | Spotted B-75 Beast 11878 | -6/Lower Caves | Discovered new exit (range 7) 11952 | -6/Lower Caves | Entered Factory 11952 | -5/Factory | Evolved 2 slots: Utility x2 11953 | -5/Factory | Loaded intel: 99 trap records 12243 | -5/Factory | Discovered new exit (range 18) 12395 | -5/Factory | Build established: Hacker-Scout 12541 | -5/Factory | Spotted B-75 Beast 13142 | -5/Factory | Lost 6 parts (1p1n4u) 13410 | -5/Factory | Entered Upper Caves 13445 | -5/Upper Caves | Learned Factory terminal intel 13449 | -5/Upper Caves | Learned 12 Factory zone layouts 13626 | -5/Upper Caves | Learned location of Warlord (-5) 13715 | -5/Upper Caves | Encountered a Warlord checkpoint 13746 | -5/Upper Caves | Spotted B-75 Beast 13754 | -5/Upper Caves | A Derelict revealed a hidden shortcut to "reach the base" 13759 | -5/Upper Caves | Discovered new exit (range 20) 13764 | -5/Upper Caves | Entered Warlord 13894 | -5/Warlord | Received a Watcher feed algorithm from an ecstatic Tinkerer 13895 | -5/Warlord | Ran a Watcher feed algorithm 13978 | -5/Warlord | Build established: Wizard-Mutant 14193 | -5/Warlord | Met Warlord 14218 | -5/Warlord | Warlord's base attacked by MAIN.C 14328 | -5/Warlord | Found Prototype Piercing Weapon 14328 | -5/Warlord | Identified Vortex Lance 14331 | -5/Warlord | Found Vortex Lance 14520 | -5/Warlord | Warlord forces counterattacked 14597 | -5/Warlord | Spotted Executioner 14612 | -5/Warlord | Discovered new exit (range 14) 14709 | -5/Warlord | Entered Proximity Caves 14709 | -4/Proximity Caves | Accompanied by 3 allies 15015 | -4/Proximity Caves | Learned Research emergency access door positions 15120 | -4/Proximity Caves | Spotted B-86 Titan 15154 | -4/Proximity Caves | Lost 3 parts (1p2n) 15484 | -4/Proximity Caves | Discovered new exit (range 5) 15499 | -4/Proximity Caves | Core integrity fell below 50% 15531 | -4/Proximity Caves | Lost 7 parts (2p1n4u) 15534 | -4/Proximity Caves | Entered Factory 15534 | -4/Factory | Evolved 2 slots: Utility x2 15535 | -4/Factory | Identified exit to Upper Caves 15536 | -4/Factory | Loaded intel: 26 terminal locations 15661 | -4/Factory | Discovered new exit (range 8) 15669 | -4/Factory | Build established: Hacker-Mutant 15736 | -4/Factory | Lost 3 parts (2n1u) 16092 | -4/Factory | Found Prototype Hackware 16150 | -4/Factory | Identified Exp. System Shield 16301 | -4/Factory | Discovered new exit (range 19) 16316 | -4/Factory | Build established: Hacker-Ninja 17227 | -4/Factory | Crushed by falling debris 17258 | -4/Factory | Lost 3 parts (3u) 17422 | -4/Factory | Identified exit to Armory 17476 | -4/Factory | Central database locked down 17565 | -4/Factory | Lost 4 parts (1n3u) 17630 | -4/Factory | Core integrity fell below 50% 17649 | -4/Factory | Lost 5 parts (2n3u) 17655 | -4/Factory | Crushed by falling debris 17655 | -4/Factory | System corruption reached 10% 17671 | -4/Factory | Entered Research 17671 | -3/Research | Evolved 2 slots: Power x1, Propulsion x1 17881 | -3/Research | Found Prototype Processor 17881 | -3/Research | Identified Exp. Targeting Computer 18134 | -3/Research | Lost 3 parts (2p1u) 18232 | -3/Research | Spotted B-86 Titan 18422 | -3/Research | Build established: Scavenger-Gladiator 18564 | -3/Research | Found Prototype Device 18671 | -3/Research | Identified Adv. Kinecellerator 18816 | -3/Research | Build established: Hacker-Scout 19004 | -3/Research | Discovered new exit (range 22) 19022 | -3/Research | Spotted B-86 Titan 19022 | -3/Research | Identified exit to Research 19077 | -3/Research | Found Prototype Device 19077 | -3/Research | Identified Exp. Shield Generator 19368 | -3/Research | Build established: Hacker-Gladiator 19476 | -3/Research | Spotted B-86 Titan 19574 | -3/Research | Found Adv. Powered Armor 19590 | -3/Research | Lost 7 parts (1p3n3u) 19599 | -3/Research | Core integrity fell below 50% 19649 | -3/Research | Lost 4 parts (1p1n2u) 19924 | -3/Research | System corruption reached 10% 19965 | -3/Research | Core integrity fell below 20% 19996 | -3/Research | Destroyed by P-80 Master with Gamma Rifle Last Messages --------------- 19979_ Vibroblade follow-up attack on P-80 Master. 19979_ R-10 Processor collects Sml. Battery. 19980_ Imp. Hacking Suite destroyed. 19981_ Adv. Signal Interpreter destroyed. 19981_ Imp. Antigrav System destroyed. 19982_ R-10 Processor collects Sml. Battery. 19982_ P-80 Master suffers critical hit (Impale). 19982_ P-80 Master destroyed. 19983_ Med. Storage Unit destroyed. 19985_ R-10 Processor collects Adv. Heat Sink. 19987_ P-80 Master resets R-10 Processor, system corruption cleaned. 19988_ Acquired Mic. Antimatter Reactor. 19989_ Structural Scanner destroyed. 19990_ Acquired Mic. Antimatter Reactor. 19992_ Acquired 63 matter. 19993_ P-80 Master resets R-10 Processor, system corruption cleaned. 19994_ Acquired Imp. Antigrav System. 19994_ Door malfunctions. 19995_ System corrupted: Vibroblade rejected. 19995_ Force Lance destroyed. Map ----- +----------------------------------------------------+ | | | | | ?????????????#########???????????????????????????? | | ????????????? ! ???????????????????????????? | | ?????????????? ????????????????????????????? | | ???????????????""" "?????????????????????????????? | | ???????????????"""S"?????????????????????????????? | | ???????????????? ??????????????????????????????? | | ???????????? ######???????????????????? | | ????????????#####+############???????????????????? | | ????????????## ##???????????????????? | | ????????????## ##???????????????????? | | ????????????## ##???????????????????? | | ????????????## ##???????????????????? | | ????????????#####"###### ##???????????????????? | | ????????????#Y [ # ##???????????????????? | | ????????????## # ##???????????????????? | | ????????????##= """ + ##???????????????????? | | ????????????## ""T"" # ###??????????????????? | | ????????????## "" "" # ###########??????????? | | ????????????## # ###########??????????? | | ?????????#??## # # ##??????????? | | ??#?#?????#?## # # ##??????????? | | ???????????############# ! # p ##??????????? | | ????????????### / ! %p !#### ???????? | | ?#??????????### # @ |# ! #### ???????? | | ##???????????## # !/!# ![+%!+ ???????? | | ?????????????## # # [#### ?????? | | #??#?????????## =# # [|#### ?? ??? | | ?????????##??## # # #### ? ? | | ??#?????????### # ppp#################+???? | | ?#????????##?## # R ???? | | #####????#???## + R ???? | | ######################## ???? | | [####################### ???? | | %+ ### ###+#####?????? | | [#! ### # #?????? | | # *! ##?? # ????????????? | | + %[ ##??? ???????????????? | | #############+## ##??? # ????????????? | | ####### # ##???? + ????????????? | | ##???## # ### ?? # ????????????? | | ###???# !# ####+##### ?? # ????????????? | | ###????# # # # ???????? ????????? | | ### ???#/* # # # ??????"??????????? | | ??#????#/* + + # ?? ??????????????? | | ###??? +/ # # # ?????????????????? | | #?????# # # / # ?????????????????? | | ##?????# # ########## ?????????????????? | | #?????###########+############ ?????????????????? | +----------------------------------------------------+ Best States ------------- Heat Dissipation 72 Energy Generation 33 Energy Capacity 500 Matter Stores 300 Matter Capacity 300 Sight Range 22 Robot Scan Range 14 Terrain Scan Range 24 Terrain Scan Density 210 Jamming Range 16 Cloak Strength 3 Additional Mass Support 12 Corruption Containment 12 Corruption Block 15 Armor Coverage 700 Resistance: KI 30 Resistance: EM 15 Core Shielding 30 Power Shielding 66 Propulsion Shielding 33 Utility Shielding 33 Weapon Shielding 66 Melee Speed Boost 30 Evasion (%) 74 Targeting Accuracy 20 Melee Accuracy 16 Target Analysis 12 Recoil Reduction 2 Particle Charging 20 Force Boost 30 Offensive Hacking 57 Defensive Hacking 28 Item Schematics ----------------- Imp. Powered Armor | -7/Factory | Hacked Hacking Suite | -7/Factory | Hacked Imp. Focal Shield | -7/Factory | Hacked Robot Schematics ------------------ None Fabricated ------------ B-48 Gladiator | x3 | -7/Factory | Preloaded Hacking Suite | x1 | -6/Factory Repaired ---------- Humpback | 46% | -8/Materials Humpback | 20% | -7/Factory Arm. Huge Wheel | 20% | -7/Factory Studied --------- Flight Unit | -9/Materials | Hacked Lgt. Ion Engine | -9/Materials | Hacked Com. Wheel | -7/Factory | Hacked Wheel | -7/Factory | Hacked Axe | -7/Factory | Hacked Field Propulsion Array | -4/Factory | Hacked Alien Tech Used ----------------- None Achievements -------------- A Powerful Ally? Charge!!! Omniscient Cartographer Recruitment Drive Challenges ------------ None Game ------ Seed CooledBoltPower Manual? 0 Play Time 06:28:54 Cumulative 109.0 hours Start 2026.08.25 @ 10:31:07 End 2026.08.25 @ 23:33:48 Sessions 9 Manual Loads 0 Difficulty Rogue Special Mode None Game No. 69 Rogue 69 Adventurer 0 Explorer 0 Win Type - Total 0 Types 0/0/0/0/0/0/0/0/0/0 Lore% 39 Gallery% 43 Achievement% 33 Wizard Run 0 Options --------- Layout 0 ASCII 0 Keyboard 1 Movement Vi Keybinds 0 Fullscreen 2 Font 18/SmallcapsGlow Map View 76x50 Zoom Use 0% Tactical HUD 1 Map Filters NONE Filters NONE Steam 1 RUN: 7c086343-fc56-4eb5-9c4f-bf46dd7038b3